bitfinex/quotes_SOLUSD_20240705
["timestamp","ask_amount","ask_price","bid_price","bid_amount"]
[1720150720432,20.0,124.05,123.93,15.4341]
[1720150720617,8.2319,124.04,123.93,21.51954933]
[1720150720817,8.0636,124.02,123.93,14.9341]
[1720150721022,8.2319,124.04,123.93,14.9341]
[1720150721350,62.41,124.07,123.93,16.80068033]
[1720150721643,0.17,124.06,123.94,6.6633]
[1720150722243,20.0,124.09,123.95,0.17]
[1720150722545,75.35566908,124.11,123.95,0.17]
[1720150722836,8.0626,124.03,123.95,20.0]
[1720150723039,8.0626,124.03,123.93,1.86658033]
[1720150723040,55.21196908,124.0,123.93,1.86658033]
[1720150723215,8.0672,123.96,123.93,1.86658033]
[1720150723418,8.2379,123.95,123.93,1.86658033]
[1720150723619,0.17,123.95,123.91,0.1]
[1720150723814,0.80703737,123.92,123.91,0.1]
[1720150724841,8.0646,124.0,123.91,0.1]
[1720150725137,8.35071972,124.02,123.91,0.1]
[1720150725340,8.35071972,124.02,123.94,8.0678]
[1720150725543,62.41,124.1,123.95,20.17]
[1720150725743,62.41,124.1,123.96,6.1826]
[1720150725943,75.35566908,124.11,123.97,20.0]
[1720150726250,8.0593,124.08,123.97,20.0]
[1720150726534,68.5587,124.14,123.98,0.17]
[1720150726535,55.21196908,124.13,123.98,0.17]
[1720150726937,8.0579,124.11,123.98,0.17]
[1720150727133,8.0587,124.09,123.98,0.17]
[1720150727544,8.0577,124.11,123.98,0.17]
[1720150727724,8.0585,124.1,123.98,0.17]
[1720150728438,55.21196908,124.13,123.99,15.5231]
[1720150728646,55.21196908,124.13,124.0,20.17]
[1720150728821,62.41,124.14,124.0,20.0]
[1720150728822,55.21196908,124.11,124.0,20.0]
[1720150729022,8.0599,124.08,124.0,20.0]
[1720150729223,8.0609,124.06,123.99,15.5231]
[1720150729428,8.0604,124.07,123.99,15.5231]
[1720150729623,8.0587,124.09,123.99,15.5231]
[1720150729834,55.21196908,124.09,123.99,15.5231]
[1720150730037,55.21196908,124.09,123.96,6.1826]
[1720150730242,8.0604,124.07,123.96,6.1826]
[1720150730442,0.17,124.08,123.96,14.249]
[1720150730649,0.17,124.08,123.96,6.1826]
[1720150730923,8.0583,124.1,123.97,8.0663]
[1720150731138,55.21196908,124.11,123.96,6.1826]
[1720150731344,8.0586,124.09,123.97,20.17]
[1720150731542,20.143,124.12,123.97,20.17]
[1720150731745,55.21196908,124.11,123.97,20.17]
[1720150732039,20.143,124.12,123.97,20.17]
[1720150732348,0.17,124.11,123.97,20.17]
[1720150732568,8.0585,124.1,123.97,20.17]
[1720150732842,8.2289,124.09,123.97,20.17]
[1720150733229,0.17,124.09,123.97,20.17]
[1720150733434,8.0605,124.07,123.97,20.17]
[1720150733624,0.17,124.09,123.97,20.17]
[1720150733823,8.2288,124.09,123.97,20.17]
[1720150734327,8.0595,124.08,123.97,20.17]
[1720150734534,0.17,124.07,123.97,20.17]
[1720150734832,0.17,124.07,123.96,6.1826]
[1720150735033,55.38196908,124.07,123.96,6.1826]
[1720150735335,8.0608,124.06,123.96,6.1826]
[1720150735536,0.17,124.05,123.96,6.1826]
[1720150736440,8.0623,124.04,123.96,5.6826]
[1720150736656,0.17,124.03,123.96,5.6826]
[1720150737356,0.17,124.04,123.96,5.6826]
[1720150737654,63.56162153,124.09,123.96,5.6826]
[1720150738162,63.56162153,124.09,123.97,20.0]
[1720150738534,8.0601,124.07,123.97,20.0]
[1720150738729,8.34965245,124.09,123.97,20.0]
[1720150738929,55.21196908,124.11,123.98,0.17]
[1720150739234,8.0595,124.08,123.98,0.17]
[1720150739444,8.0603,124.07,123.98,0.17]
[1720150739649,8.0603,124.07,123.97,20.0]
[1720150740030,8.0589,124.09,123.97,20.0]
[1720150740242,8.0573,124.12,123.99,8.0651]
[1720150740447,62.41,124.14,124.0,20.17]
[1720150740633,8.34581536,124.12,124.0,20.17]
[1720150740834,55.21196908,124.1,124.0,20.0]
[1720150741035,8.0613,124.05,123.98,1.86582756]
[1720150741235,55.21196908,124.06,123.98,1.86582756]
[1720150741545,20.149,124.08,123.98,1.86582756]
[1720150741851,0.17,124.07,123.96,5.6826]
[1720150742057,8.34581536,124.12,123.96,7.54872859]
[1720150742232,8.34581536,124.12,123.96,55.91872859]
[1720150742426,8.0537,124.17,124.04,6.135]
[1720150742626,62.41,124.2,124.05,0.17]
[1720150742857,8.34123599,124.18,124.09,8.0586]
[1720150743155,61.45736908,124.24,124.1,20.17]
[1720150743156,55.21196908,124.24,124.1,20.17]
[1720150743461,55.21196908,124.2,124.06,17.89892438]
[1720150743635,55.21196908,124.22,124.06,17.89892438]
[1720150743838,55.21196908,124.21,124.07,20.0]
[1720150744071,70.74693107,124.23,124.1,8.0574]
[1720150744374,8.33693107,124.23,124.12,6.3122]
[1720150744534,16.38663107,124.23,124.13,0.17]
[1720150744737,62.41,124.26,124.13,0.17]
[1720150744966,8.0504,124.22,124.13,20.17]
[1720150745143,55.21196908,124.24,124.13,20.0]
[1720150745347,40.2416,124.25,124.12,6.3122]
[1720150745646,40.2416,124.25,124.12,14.3686]
[1720150745647,8.0484,124.25,124.12,14.3686]
[1720150745835,70.74491385,124.26,124.13,8.0559]
[1720150746035,8.049,124.24,124.14,20.0]
[1720150746262,8.0502,124.23,124.14,20.0]
[1720150746465,62.41,124.22,124.12,6.3122]
[1720150746684,62.41,124.25,124.07,6.3122]
[1720150746685,8.0549,124.15,124.07,6.3122]
[1720150746838,8.0531,124.18,124.07,12.71733205]
[1720150747036,8.0544,124.16,124.07,6.3122]
[1720150747348,0.17,124.15,124.07,6.3122]
[1720150748469,20.1397,124.14,124.01,6.3122]
[1720150748641,55.21196908,124.15,124.01,6.3122]
[1720150748642,55.21196908,124.11,124.01,6.3122]
[1720150748966,8.0604,124.07,124.01,6.3122]
[1720150749148,62.41,124.09,124.01,6.3122]
[1720150749345,0.17,124.08,124.01,6.3122]
[1720150749574,8.0602,124.07,124.01,6.3122]
[1720150749876,8.2306,124.06,124.01,6.3122]
[1720150750042,62.41,124.09,124.01,6.3122]
[1720150750237,8.0598,124.08,124.01,6.3122]
[1720150750439,55.38196908,124.08,123.96,6.2187]
[1720150750663,62.41,124.05,123.96,6.2187]
[1720150750862,8.0629,124.03,123.96,6.2187]
[1720150751065,0.17,124.04,123.96,6.2187]
[1720150751240,8.0638,124.02,123.96,6.2187]
[1720150751446,0.17,124.01,123.96,6.2187]
[1720150751654,62.41,124.09,123.96,6.2187]
[1720150751865,20.17,124.08,123.96,6.2187]
[1720150752052,55.21196908,124.12,123.98,8.0655]
[1720150752250,125.67786908,124.14,123.99,40.1614]
[1720150752574,55.21196908,124.14,124.02,6.0264]
[1720150752957,8.057,124.12,124.02,6.0264]
[1720150753274,8.0581,124.1,124.02,6.0264]
[1720150753454,8.0601,124.07,124.02,6.0264]
[1720150753777,20.1434,124.11,124.02,6.0264]
[1720150753988,8.059,124.09,124.02,6.0264]
[1720150754287,0.17,124.1,124.02,6.0264]
[1720150754471,62.41,124.14,124.02,6.0264]
[1720150754796,8.0519,124.2,124.06,8.0604]
[1720150754961,8.0519,124.2,124.07,20.17]
[1720150755313,8.0503,124.22,124.08,6.3085]
[1720150755461,8.0512,124.21,124.09,20.17]
[1720150755783,8.0528,124.18,124.09,20.17]
[1720150755995,63.55197788,124.22,124.08,6.3085]
[1720150755996,55.21196908,124.2,124.08,6.3085]
[1720150756284,8.0547,124.16,124.08,6.3085]
[1720150756786,8.0568,124.12,124.04,16.6052]
[1720150756954,0.17,124.11,124.04,16.6052]
[1720150757155,8.0592,124.09,124.04,16.6052]
[1720150757357,0.17,124.08,124.04,16.6052]
[1720150757577,63.26986908,124.11,124.03,6.1925]
[1720150757782,0.17,124.1,124.03,6.1925]
[1720150758077,8.0542,124.16,124.03,6.1925]
[1720150758299,8.0527,124.19,124.05,8.061]
[1720150758461,8.0544,124.16,124.04,16.1053]
[1720150758655,82.5386,124.21,124.04,36.2585]
[1720150758860,8.0535,124.17,124.04,46.18522503]
[1720150759113,62.41,124.21,124.06,20.1504]
[1720150759278,16.3902088,124.22,124.09,8.0586]
[1720150759482,8.0497,124.23,124.1,20.17]
[1720150759709,8.0523,124.19,124.1,20.17]
[1720150759917,8.0565,124.13,124.07,8.05697409]
[1720150760212,62.41,124.21,124.07,6.1925]
[1720150760513,8.0527,124.19,124.08,20.0]
[1720150760709,75.50846908,124.22,124.08,20.0]
[1720150760875,8.0528,124.18,124.08,20.0]
[1720150761080,0.17,124.17,124.08,20.0]
[1720150761790,0.17,124.17,124.07,6.1925]
[1720150762016,55.21196908,124.16,124.07,6.1925]
[1720150762316,8.0566,124.13,124.07,6.1925]
[1720150762605,8.2268,124.12,124.07,6.1925]
[1720150762828,0.17,124.11,124.07,6.1925]
[1720150762979,55.21196908,124.1,123.99,22.0502]
[1720150763182,8.0598,124.08,123.99,22.0502]
[1720150763376,0.17,124.07,123.99,22.0502]
[1720150763607,8.0574,124.11,123.99,22.0502]
[1720150763912,8.0599,124.08,123.99,6.505]
[1720150764128,55.38196908,124.1,123.99,6.505]
[1720150764433,8.0587,124.09,123.99,6.505]
[1720150764802,0.17,124.08,123.99,6.505]
[1720150765513,8.2293,124.08,123.99,6.505]
[1720150765699,55.21196908,124.08,123.99,6.505]
[1720150766023,63.27316908,124.06,123.99,6.505]
[1720150766208,0.17,124.05,123.99,6.505]
[1720150766412,0.17,124.07,123.99,6.505]
[1720150766619,8.2302,124.07,123.99,6.505]
[1720150766825,0.17,124.07,123.99,6.505]
[1720150767041,55.21196908,124.13,123.99,6.505]
[1720150767207,62.41,124.14,123.99,6.505]
[1720150767208,55.21196908,124.11,123.99,6.505]
[1720150767415,117.62196908,124.11,123.99,6.505]
[1720150767616,55.21196908,124.09,123.99,6.505]
[1720150767815,117.62196908,124.07,123.99,6.505]
[1720150768030,8.0619,124.04,123.96,3.3702]
[1720150768431,0.17,124.03,123.96,3.3702]
[1720150768613,62.41,124.07,123.96,3.3702]
[1720150768809,0.17,124.06,123.96,3.3702]
[1720150769037,68.42675892,124.16,123.96,43.7026]
[1720150769211,55.21196908,124.18,124.05,6.2541]
[1720150769415,8.0542,124.16,124.05,6.2541]
[1720150769608,8.054,124.17,124.05,6.2541]
[1720150769928,55.21196908,124.18,124.05,6.2541]
[1720150770227,8.0546,124.16,124.05,6.2541]
[1720150770434,16.40187059,124.17,124.05,6.2541]
[1720150770810,55.21196908,124.16,124.05,6.2541]
[1720150771014,8.34837059,124.17,124.05,6.2541]
[1720150771212,8.34837059,124.17,124.06,15.7857]
[1720150771417,55.21196908,124.18,124.07,20.0]
[1720150771615,8.34482121,124.18,124.06,15.7857]
[1720150771816,63.55679029,124.18,124.07,20.0]
[1720150772536,55.21196908,124.16,124.06,15.7857]
[1720150772733,0.17,124.15,124.05,6.2541]
[1720150773237,55.21196908,124.13,124.05,6.2541]
[1720150773420,0.17,124.12,124.05,6.2541]
[1720150773612,0.17,124.15,124.05,6.2541]
[1720150773816,55.38196908,124.15,124.05,6.2541]
[1720150774331,8.0555,124.14,124.05,6.2541]
[1720150774633,0.17,124.13,124.05,6.2541]
[1720150774838,8.2248,124.15,124.05,6.2541]
[1720150775311,8.0535,124.17,124.05,6.2541]
[1720150775511,8.34482121,124.18,124.06,20.17]
[1720150775739,55.21196908,124.19,124.06,20.17]
[1720150775949,8.0528,124.18,124.06,28.2304]
[1720150776239,8.0528,124.18,124.06,20.17]
[1720150776445,8.0535,124.17,124.06,20.17]
[1720150776747,8.0529,124.18,124.06,20.17]
[1720150777241,0.17,124.17,124.06,20.17]
[1720150777743,55.21196908,124.17,124.05,6.2541]
[1720150777956,0.17,124.16,124.05,6.2541]
[1720150778152,55.21196908,124.15,124.05,6.2541]
[1720150778443,0.17,124.14,124.05,6.2541]
[1720150779213,63.55251882,124.19,124.05,6.2541]
[1720150779438,63.55251882,124.19,124.06,0.17]
[1720150779641,63.55251882,124.19,124.06,20.17]
[1720150779824,55.21196908,124.17,124.06,20.0]
[1720150780618,55.21196908,124.17,124.05,6.2541]
[1720150780946,63.55251882,124.19,124.06,20.0]
[1720150781159,63.26586908,124.17,124.06,20.0]
[1720150781322,0.17,124.16,124.06,20.0]
[1720150782030,0.17,124.16,124.05,6.2541]
[1720150782224,8.2244,124.16,124.05,6.2541]
[1720150782836,0.17,124.16,124.05,6.2541]
[1720150783115,63.55251882,124.19,124.06,20.0]
[1720150783356,55.21196908,124.17,124.06,20.0]
[1720150783540,8.0546,124.16,124.06,20.0]
[1720150783717,63.55251882,124.19,124.06,20.0]
[1720150783718,63.26556908,124.17,124.06,20.0]
[1720150783915,63.55251882,124.19,124.06,20.0]
[1720150784115,8.0549,124.15,124.06,20.0]
[1720150784311,55.21196908,124.17,124.06,20.0]
[1720150784553,0.17,124.16,124.06,20.0]
[1720150784756,55.21196908,124.15,124.05,8.818]
[1720150785043,63.26686908,124.15,124.05,8.818]
[1720150785362,0.17,124.14,124.05,8.818]
[1720150785846,0.17,124.15,124.05,8.818]
[1720150786014,55.21196908,124.17,124.06,20.0]
[1720150786217,8.0548,124.15,124.06,20.0]
[1720150786442,55.21196908,124.19,124.06,20.0]
[1720150786749,55.21196908,124.19,124.07,0.17]
[1720150787046,55.21196908,124.19,124.07,28.3787]
[1720150787242,55.21196908,124.19,124.08,20.0]
[1720150787447,63.26426908,124.19,124.08,20.0]
[1720150787944,8.0523,124.19,124.08,20.0]
[1720150788113,70.4604,124.22,124.09,8.2282]
[1720150788317,8.0484,124.25,124.13,15.2117]
[1720150788537,117.72196908,124.29,124.17,8.0533]
[1720150788816,117.72196908,124.29,124.18,20.0]
[1720150789168,126.05446958,124.29,124.18,20.0]
[1720150789559,126.05446958,124.29,124.16,28.054]
[1720150789865,63.64446958,124.29,124.17,0.17]
[1720150790072,55.31196908,124.29,124.18,8.0528]
[1720150790254,55.31196908,124.29,124.19,20.0]
[1720150790454,63.35766908,124.29,124.19,20.0]
[1720150790661,55.31196908,124.29,124.19,20.0]
[1720150790844,55.31196908,124.29,124.18,20.0]
[1720150791356,0.1,124.29,124.2,6.2877]
[1720150791549,0.1,124.29,124.22,8.0502]
[1720150791749,0.1,124.29,124.23,28.2194]
[1720150791952,0.1,124.29,124.23,0.17]
[1720150792145,0.1,124.29,124.24,20.0]
[1720150792576,0.1,124.29,124.21,15.5356]
[1720150792902,0.1,124.29,124.22,20.0]
[1720150794188,0.1,124.29,124.21,15.5356]
[1720150794497,8.047,124.27,124.2,6.2877]
[1720150794677,0.17,124.26,124.2,6.2877]
[1720150794878,55.21196908,124.28,124.16,21.6663]
[1720150794879,0.17,124.27,124.16,21.6663]
[1720150795060,8.0489,124.24,124.16,21.6663]
[1720150795259,0.17,124.27,124.16,21.6663]
[1720150795461,0.17,124.23,124.16,21.6663]
[1720150796086,8.0472,124.27,124.16,21.6663]
[1720150796299,0.17,124.26,124.16,21.6663]
[1720150796671,8.0489,124.24,124.16,21.6663]
[1720150796877,0.17,124.23,124.16,21.6663]
[1720150798277,8.0464,124.28,124.17,20.0]
[1720150798968,8.047,124.27,124.17,20.0]
[1720150799364,8.0464,124.28,124.17,20.0]
[1720150799569,8.0463,124.28,124.17,20.0]
[1720150799800,8.217,124.27,124.17,20.0]
[1720150800289,8.048,124.26,124.17,20.0]
[1720150800517,8.0504,124.22,124.16,21.6663]
[1720150800670,55.38196908,124.25,124.16,21.6663]
[1720150800865,55.38196908,124.25,124.16,6.1323]
[1720150800866,8.0502,124.22,124.16,6.1323]
[1720150801104,8.0526,124.19,124.12,6.5809]
[1720150801409,0.17,124.18,124.12,6.5809]
[1720150802284,0.17,124.19,124.12,6.5809]
[1720150802493,63.43436908,124.19,124.12,6.5809]
[1720150802792,55.38196908,124.19,124.12,6.5809]
[1720150802998,55.38196908,124.19,124.07,6.5736]
[1720150802999,55.21196908,124.17,124.07,6.5736]
[1720150803180,55.21196908,124.15,124.07,6.5736]
[1720150803372,0.17,124.14,124.07,6.5736]
[1720150803805,0.80599662,124.08,124.07,6.5736]
[1720150803974,55.21196908,124.21,124.08,1.7581]
[1720150804391,8.32036599,124.22,124.08,1.7581]
[1720150804590,55.21196908,124.21,124.08,1.7581]
[1720150805099,8.0546,124.16,124.08,1.7581]
[1720150805306,8.0552,124.15,124.08,21.7581]
[1720150805608,55.21196908,124.15,124.07,6.5736]
[1720150805807,55.21196908,124.13,124.07,6.5736]
[1720150805988,0.17,124.12,124.07,6.5736]
[1720150806303,63.43736908,124.14,124.07,6.5736]
[1720150806613,55.38196908,124.14,124.03,6.5736]
[1720150806786,8.0561,124.13,124.03,6.5736]
[1720150806985,0.17,124.12,124.03,6.5736]
[1720150807181,0.17,124.14,124.03,6.5736]
[1720150807378,55.38196908,124.14,124.03,6.5736]
[1720150807576,0.17,124.14,124.03,6.5736]
[1720150807878,8.0593,124.08,124.03,6.5736]
[1720150808084,0.17,124.07,124.03,6.5736]
[1720150810001,0.17,124.07,123.98,16.4176]
[1720150810223,0.17,124.07,123.98,23.0331]
[1720150810508,63.27276908,124.06,123.98,23.0331]
[1720150810699,0.17,124.05,123.98,23.0331]
[1720150810912,55.21196908,124.05,123.98,6.6155]
[1720150811207,0.17,124.04,123.98,6.6155]
[1720150811585,55.21196908,124.03,123.98,6.6155]
[1720150811780,0.17,124.02,123.98,6.6155]
[1720150812278,0.17,124.02,123.93,16.4414]
[1720150812482,0.17,124.02,123.94,26.6056]
[1720150812707,0.17,124.02,123.94,6.6056]
[1720150813289,55.21196908,124.01,123.94,6.6056]
[1720150813510,8.2345,124.0,123.94,6.6056]
[1720150814287,55.21196908,123.99,123.94,6.6056]
[1720150814507,0.17,123.98,123.91,0.1]
[1720150814706,55.21196908,123.97,123.91,0.1]
[1720150814908,0.17,123.96,123.91,0.1]
[1720150815223,55.21196908,124.01,123.91,0.1]
[1720150815424,8.0652,123.99,123.91,0.1]
[1720150815710,0.17,123.98,123.91,0.1]
[1720150816408,8.32520241,124.04,123.92,22.5867]
[1720150816619,117.62196908,124.08,123.92,22.5867]
[1720150816620,55.21196908,124.06,123.93,48.2396]
[1720150816811,55.21196908,124.04,123.93,20.0]
[1720150817311,55.21196908,124.02,123.93,20.0]
[1720150817528,55.21196908,124.0,123.93,20.0]
[1720150817809,55.21196908,124.0,123.92,22.5867]
[1720150818006,55.21196908,124.0,123.93,20.0]
[1720150818212,0.17,123.99,123.93,20.0]
[1720150818406,0.17,123.99,123.92,22.5867]
[1720150818608,117.62196908,124.04,123.92,22.5867]
[1720150818794,55.21196908,124.06,123.93,0.17]
[1720150818984,8.33901348,124.07,123.93,20.17]
[1720150819198,8.0641,124.01,123.93,20.0]
[1720150819804,8.0653,123.99,123.92,22.5867]
[1720150820029,55.21196908,123.97,123.92,6.032]
[1720150820215,0.17,123.96,123.92,6.032]
[1720150820729,55.21196908,123.95,123.91,0.1]
[1720150820931,0.17,123.94,123.91,0.1]
[1720150821245,55.21196908,123.93,123.91,0.1]
[1720150821529,8.2397,123.92,123.91,0.1]
[1720150822409,0.17,123.92,123.91,0.1]
[1720150822830,8.2397,123.92,123.91,0.1]
[1720150823833,8.0745,123.85,123.81,0.1]
[1720150824007,55.21196908,123.89,123.81,0.1]
[1720150824201,0.17,123.88,123.81,0.1]
[1720150824403,0.17,123.87,123.81,0.1]
[1720150824633,0.80703737,123.92,123.81,0.1]
[1720150824944,0.80703737,123.92,123.82,22.108]
[1720150825436,117.62196908,124.02,123.84,7.9037]
[1720150825744,117.62196908,124.02,123.85,20.17]
[1720150826045,63.27736908,123.99,123.85,20.17]
[1720150826207,55.21196908,124.01,123.85,20.17]
[1720150826405,55.21196908,123.99,123.85,20.17]
[1720150826607,8.0657,123.99,123.85,20.17]
[1720150826826,55.21196908,124.01,123.85,20.17]
[1720150826827,8.0647,124.0,123.86,6.1989]
[1720150827027,8.0665,123.97,123.87,20.17]
[1720150827562,55.21196908,123.99,123.87,20.17]
[1720150827730,75.37556908,123.99,123.87,20.0]
[1720150827924,8.0678,123.95,123.87,20.0]
[1720150828127,8.0689,123.94,123.87,20.0]
[1720150828356,75.37556908,123.99,123.87,20.0]
[1720150828357,8.0682,123.95,123.87,20.0]
[1720150828528,8.33633121,124.02,123.89,6.1989]
[1720150828731,8.33633121,124.02,123.91,15.6374]
[1720150828927,40.2969,124.08,123.91,15.6374]
[1720150828928,8.0619,124.04,123.93,6.6235]
[1720150829130,8.0619,124.04,123.94,20.17]
[1720150829355,28.47717396,124.09,123.94,20.17]
[1720150829530,8.062,124.04,123.95,22.7643]
[1720150829736,8.0621,124.04,123.96,20.17]
[1720150830499,20.1523,124.06,123.96,20.0]
[1720150830634,8.0638,124.02,123.96,20.0]
[1720150830836,8.0658,123.98,123.95,22.7643]
[1720150831130,20.1563,124.04,123.95,7.5749]
[1720150831550,0.17,124.03,123.95,7.5749]
[1720150832344,8.0651,123.99,123.95,7.5749]
[1720150832549,0.17,124.03,123.95,7.5749]
[1720150832754,8.0658,123.98,123.95,7.5749]
[1720150832949,75.36986908,124.03,123.95,7.5749]
[1720150833234,55.21196908,123.99,123.9,15.7271]
[1720150833557,8.0703,123.91,123.9,6.1721]
[1720150833942,8.0718,123.89,123.85,6.1721]
[1720150834147,8.071,123.9,123.85,6.1721]
[1720150834384,0.17,123.98,123.85,6.1721]
[1720150834684,20.1579,124.03,123.86,78.36153524]
[1720150834989,8.0665,123.97,123.86,78.36153524]
[1720150835208,8.0693,123.93,123.86,78.36153524]
[1720150835366,8.0698,123.92,123.87,0.17]
[1720150835567,75.37676908,123.98,123.86,7.87553524]
[1720150835785,20.1694,123.95,123.86,7.87553524]
[1720150836086,0.17,123.94,123.86,7.87553524]
[1720150836403,55.21196908,123.98,123.86,7.87553524]
[1720150836698,8.0671,123.96,123.86,7.87553524]
[1720150836870,60.4719,124.03,123.86,7.87553524]
[1720150837071,8.0674,123.96,123.86,7.87553524]
[1720150837293,8.0674,123.96,123.87,0.17]
[1720150837680,8.0674,123.96,123.87,20.17]
[1720150838277,8.0688,123.94,123.87,20.17]
[1720150838597,8.0698,123.92,123.87,20.0]
[1720150838793,55.21196908,123.97,123.86,7.87553524]
[1720150838965,8.0711,123.9,123.86,7.87553524]
[1720150839167,8.071,123.91,123.86,7.87553524]
[1720150839788,8.0718,123.89,123.86,7.87553524]
[1720150839984,0.17,123.96,123.86,7.87553524]
[1720150840306,8.0729,123.87,123.86,7.87553524]
[1720150840512,8.0729,123.87,123.86,1.86763524]
[1720150840938,20.1777,123.9,123.83,6.543]
[1720150841202,20.1823,123.88,123.81,0.1]
[1720150841507,8.0742,123.85,123.81,0.1]
[1720150841714,82.5812,123.94,123.81,0.1]
[1720150841917,8.0718,123.89,123.81,0.1]
[1720150842120,8.0725,123.88,123.81,0.1]
[1720150842296,0.17,123.93,123.81,0.1]
[1720150842618,8.073,123.87,123.81,0.1]
[1720150842798,55.38196908,123.93,123.81,0.1]
[1720150843003,8.0724,123.88,123.81,0.1]
[1720150843504,75.55506908,123.93,123.81,0.1]
[1720150843698,8.0756,123.83,123.81,0.1]
[1720150844025,8.88328921,123.83,123.81,0.1]
[1720150844231,8.0762,123.82,123.81,0.1]
[1720150844395,0.80768921,123.83,123.81,0.1]
[1720150844925,8.88328921,123.83,123.81,0.1]
[1720150845130,0.80768921,123.83,123.81,0.1]
[1720150845811,8.0762,123.82,123.81,0.1]
[1720150846007,8.88318921,123.83,123.81,0.1]
[1720150846208,0.80768921,123.83,123.81,0.1]
[1720150849615,8.0762,123.82,123.81,0.1]
[1720150849812,0.80768921,123.83,123.81,0.1]
[1720150850437,8.88328921,123.83,123.81,0.1]
[1720150850649,0.80768921,123.83,123.81,0.1]
[1720150850944,8.88338921,123.83,123.81,0.1]
[1720150851241,8.0762,123.82,123.81,0.1]
[1720150851610,8.2462,123.82,123.81,0.1]
[1720150852010,63.45816908,123.82,123.81,0.1]
[1720150852539,8.0818,123.74,123.71,0.1]
[1720150853239,8.0827,123.72,123.71,0.1]
[1720150853417,8.2527,123.72,123.71,0.1]
[1720150853620,8.082,123.74,123.71,0.1]
[1720150853827,8.0808,123.75,123.71,0.1]
[1720150854134,8.0827,123.72,123.71,0.1]
[1720150854326,8.2527,123.72,123.71,0.1]
[1720150854525,8.0827,123.72,123.71,0.1]
[1720150855045,8.0816,123.74,123.71,0.1]
[1720150855340,55.21196908,123.78,123.71,0.1]
[1720150855341,20.1995,123.77,123.71,0.1]
[1720150855550,8.0802,123.76,123.71,0.1]
[1720150855724,55.21196908,123.78,123.71,0.1]
[1720150855929,8.0827,123.72,123.71,0.1]
[1720150856533,55.21196908,123.76,123.71,0.1]
[1720150856844,8.0827,123.72,123.71,0.1]
[1720150857322,8.2527,123.72,123.71,0.1]
[1720150858441,8.0803,123.76,123.71,0.1]
[1720150858763,8.0809,123.75,123.71,0.1]
[1720150859056,8.08,123.77,123.71,0.1]
[1720150859221,8.0803,123.76,123.71,0.1]
[1720150859424,20.1943,123.8,123.71,0.1]
[1720150859629,8.08,123.77,123.71,0.1]
[1720150859845,8.34807374,123.81,123.71,6.6404]
[1720150860032,36.29428921,123.83,123.72,20.0]
[1720150860033,20.99728921,123.83,123.72,20.0]
[1720150860336,8.0764,123.82,123.73,0.17]
[1720150860542,56.01965829,123.83,123.72,20.0]
[1720150860762,8.0801,123.77,123.72,20.0]
[1720150861042,8.0801,123.77,123.71,6.6404]
[1720150861043,8.0802,123.76,123.71,6.6404]
[1720150861418,116.58975829,123.83,123.71,6.6404]
[1720150861623,8.0796,123.77,123.71,6.6404]
[1720150861848,75.40526908,123.81,123.71,6.6404]
[1720150861849,8.079,123.78,123.71,6.6404]